[Event "*** SCC Grand Prix: Titled Tuesday Blitz"]
[Site "Chess.com"]
[Date "2020.08.04"]
[Round "9"]
[White "AbigailCabezas"]
[Black "DrMamaliga"]
[Result "0-1"]
[WhiteElo "1385"]
[BlackElo "2172"]
[TimeControl "180+1"]
[EndTime "15:26:05 PDT"]
[Termination "DrMamaliga won on time"]

1. e4 {[%clk 0:03:00.9]} 1... d6 {[%clk 0:03:00.2]} 2. d4 {[%clk 0:02:53.9]}
2... Nf6 {[%clk 0:03:00]} 3. Nc3 {[%clk 0:02:51.4]} 3... g6 {[%clk 0:02:52.3]}
4. f4 {[%clk 0:02:50.8]} 4... Bg7 {[%clk 0:02:51.3]} 5. Nf3 {[%clk 0:02:50.2]}
5... c5 {[%clk 0:02:51.8]} 6. Be2 {[%clk 0:02:44.9]} 6... O-O {[%clk 0:02:46]}
7. O-O {[%clk 0:02:43.2]} 7... cxd4 {[%clk 0:02:43.4]} 8. Nxd4 {[%clk
0:02:41.6]} 8... Nc6 {[%clk 0:02:43.7]} 9. Nf3 {[%clk 0:02:37.9]} 9... Qb6+
{[%clk 0:02:41.1]} 10. Kh1 {[%clk 0:02:32.7]} 10... Ng4 {[%clk 0:02:40.9]} 11.
Qe1 {[%clk 0:02:12.9]} 11... Ne3 {[%clk 0:02:39.5]} 12. Bxe3 {[%clk 0:02:10.8]}
12... Qxe3 {[%clk 0:02:40.4]} 13. Bd3 {[%clk 0:02:04.5]} 13... Qxe1 {[%clk
0:02:39.6]} 14. Raxe1 {[%clk 0:02:03.2]} 14... Bxc3 {[%clk 0:02:38.2]} 15. bxc3
{[%clk 0:02:02.4]} 15... Be6 {[%clk 0:02:38.7]} 16. a4 {[%clk 0:02:00.7]} 16...
Rac8 {[%clk 0:02:37.6]} 17. c4 {[%clk 0:01:55.7]} 17... Na5 {[%clk 0:02:36.4]}
18. e5 {[%clk 0:01:49.3]} 18... Nxc4 {[%clk 0:02:27.7]} 19. exd6 {[%clk
0:01:37.3]} 19... Nxd6 {[%clk 0:02:28.6]} 20. Rf2 {[%clk 0:01:34.7]} 20... Rfe8
{[%clk 0:02:28.1]} 21. Nh4 {[%clk 0:01:27.8]} 21... Bf5 {[%clk 0:02:17.7]} 22.
Nxf5 {[%clk 0:01:25]} 22... Nxf5 {[%clk 0:02:17.2]} 23. g4 {[%clk 0:01:22.2]}
23... Nd4 {[%clk 0:02:12.5]} 24. c4 {[%clk 0:01:13.2]} 24... Kg7 {[%clk
0:02:09.3]} 25. Rd1 {[%clk 0:01:07.4]} 25... Rcd8 {[%clk 0:02:07.1]} 26. Rb2
{[%clk 0:00:57.4]} 26... b6 {[%clk 0:02:06]} 27. Rb4 {[%clk 0:00:50.5]} 27...
Ne6 {[%clk 0:02:05.2]} 28. Rbb1 {[%clk 0:00:47.1]} 28... Nxf4 {[%clk 0:02:03.5]}
29. Bc2 {[%clk 0:00:45.8]} 29... Ne6 {[%clk 0:01:56.9]} 30. Rf1 {[%clk
0:00:44.2]} 30... Rd2 {[%clk 0:01:54.8]} 31. Bb3 {[%clk 0:00:42.8]} 31... Nc5
{[%clk 0:01:53.9]} 32. h4 {[%clk 0:00:31.2]} 32... Red8 {[%clk 0:01:51.5]} 33.
Bd1 {[%clk 0:00:25.2]} 33... Ne4 {[%clk 0:01:46.6]} 34. Bf3 {[%clk 0:00:21.5]}
34... Ng3+ {[%clk 0:01:45.8]} 35. Kg1 {[%clk 0:00:19]} 35... Nxf1 {[%clk
0:01:44.8]} 36. Kxf1 {[%clk 0:00:19.5]} 36... R8d3 {[%clk 0:01:42.9]} 37. Re1
{[%clk 0:00:18.8]} 37... Rxf3+ {[%clk 0:01:42.2]} 38. Kg1 {[%clk 0:00:19.3]}
38... Rg3+ {[%clk 0:01:42.7]} 39. Kh1 {[%clk 0:00:19.4]} 39... Rxg4 {[%clk
0:01:43.4]} 40. Rxe7 {[%clk 0:00:16]} 40... Rxh4+ {[%clk 0:01:43.2]} 41. Kg1
{[%clk 0:00:15.7]} 41... Rxc4 {[%clk 0:01:44.1]} 42. Kh1 {[%clk 0:00:15.2]}
42... Rc1+ {[%clk 0:01:44.1]} 0-1

[Event "*** SCC Grand Prix: Titled Tuesday Blitz"]
[Site "Chess.com"]
[Date "2020.08.04"]
[Round "9"]
[White "tan275"]
[Black "Justinz"]
[Result "0-1"]
[WhiteElo "2243"]
[BlackElo "2357"]
[TimeControl "180+1"]
[EndTime "15:26:09 PDT"]
[Termination "Justinz won on time"]

1. d4 {[%clk 0:03:00.9]} 1... Nf6 {[%clk 0:02:57.3]} 2. c4 {[%clk 0:03:01.3]}
2... e6 {[%clk 0:02:56.6]} 3. g3 {[%clk 0:03:00.4]} 3... d5 {[%clk 0:02:53.9]}
4. Nf3 {[%clk 0:02:59.7]} 4... Bb4+ {[%clk 0:02:51.9]} 5. Nc3 {[%clk 0:02:57.9]}
5... O-O {[%clk 0:02:49.3]} 6. Bg2 {[%clk 0:02:57.5]} 6... Nc6 {[%clk 0:02:48]}
7. O-O {[%clk 0:02:47.5]} 7... dxc4 {[%clk 0:02:44.7]} 8. Qa4 {[%clk 0:02:46.2]}
8... Rb8 {[%clk 0:02:40.1]} 9. Qb5 {[%clk 0:02:30.1]} 9... h6 {[%clk 0:02:15.6]}
10. Ne5 {[%clk 0:01:52.7]} 10... Nxe5 {[%clk 0:02:01.7]} 11. dxe5 {[%clk
0:01:49.9]} 11... Bxc3 {[%clk 0:02:01.4]} 12. bxc3 {[%clk 0:01:47]} 12... Nd5
{[%clk 0:02:00.5]} 13. Qxc4 {[%clk 0:01:44.4]} 13... Qe7 {[%clk 0:01:55.3]} 14.
Qg4 {[%clk 0:01:39.5]} 14... Kh8 {[%clk 0:01:50.8]} 15. c4 {[%clk 0:01:37.2]}
15... f5 {[%clk 0:01:42.7]} 16. Qg6 {[%clk 0:01:28.7]} 16... Nb6 {[%clk
0:01:39.1]} 17. Rd1 {[%clk 0:01:02.7]} 17... Bd7 {[%clk 0:01:31.9]} 18. a4
{[%clk 0:00:52.9]} 18... Be8 {[%clk 0:01:29.8]} 19. Ba3 {[%clk 0:00:46.8]} 19...
c5 {[%clk 0:01:29.9]} 20. Bxc5 {[%clk 0:00:43.1]} 20... Qxc5 {[%clk 0:01:29.7]}
21. Qxe6 {[%clk 0:00:42.2]} 21... Bxa4 {[%clk 0:01:22.6]} 22. Bd5 {[%clk
0:00:32.3]} 22... Bxd1 {[%clk 0:01:19.7]} 23. Rxd1 {[%clk 0:00:28.4]} 23... Rbe8
{[%clk 0:01:19.4]} 24. Qg6 {[%clk 0:00:23.6]} 24... Nxc4 {[%clk 0:01:14.7]} 25.
Kg2 {[%clk 0:00:12.9]} 25... Nxe5 {[%clk 0:01:12]} 26. Qh5 {[%clk 0:00:09.7]}
26... Rd8 {[%clk 0:01:11.2]} 27. e4 {[%clk 0:00:07.1]} 27... Ng4 {[%clk
0:01:07.3]} 28. Rd2 {[%clk 0:00:02.1]} 28... Qc3 {[%clk 0:01:00.7]} 0-1

[Event "*** SCC Grand Prix: Titled Tuesday Blitz"]
[Site "Chess.com"]
[Date "2020.08.04"]
[Round "9"]
[White "DishonorOnYourCow"]
[Black "lacafi"]
[Result "1-0"]
[WhiteElo "2280"]
[BlackElo "2050"]
[TimeControl "180+1"]
[EndTime "15:26:26 PDT"]
[Termination "DishonorOnYourCow won on time"]

1. d4 {[%clk 0:03:00.9]} 1... f5 {[%clk 0:02:59.6]} 2. c4 {[%clk 0:02:59.9]}
2... Nf6 {[%clk 0:03:00.2]} 3. g3 {[%clk 0:02:59.4]} 3... g6 {[%clk 0:03:00.7]}
4. Nh3 {[%clk 0:02:58.6]} 4... Bg7 {[%clk 0:02:58.6]} 5. Bg2 {[%clk 0:02:58.9]}
5... O-O {[%clk 0:02:59.1]} 6. O-O {[%clk 0:02:56]} 6... d6 {[%clk 0:02:59.5]}
7. d5 {[%clk 0:02:54.2]} 7... Na6 {[%clk 0:02:41.4]} 8. Nf4 {[%clk 0:02:53.5]}
8... Nc5 {[%clk 0:02:39.6]} 9. Nc3 {[%clk 0:02:48.1]} 9... g5 {[%clk 0:02:26.1]}
10. Nd3 {[%clk 0:02:46.8]} 10... Nxd3 {[%clk 0:02:12.2]} 11. Qxd3 {[%clk
0:02:47.7]} 11... h6 {[%clk 0:02:11.5]} 12. e4 {[%clk 0:02:39.7]} 12... fxe4
{[%clk 0:02:10.6]} 13. Nxe4 {[%clk 0:02:40.6]} 13... Bf5 {[%clk 0:02:07]} 14.
Nxf6+ {[%clk 0:02:22.4]} 14... Rxf6 {[%clk 0:01:54.1]} 15. Qb3 {[%clk
0:02:23.3]} 15... b6 {[%clk 0:01:50.3]} 16. Be3 {[%clk 0:02:21.6]} 16... Rf8
{[%clk 0:01:47.4]} 17. Rfe1 {[%clk 0:02:13.3]} 17... Qd7 {[%clk 0:01:45.4]} 18.
Qd1 {[%clk 0:02:06.3]} 18... Bh3 {[%clk 0:01:40.3]} 19. Bd4 {[%clk 0:01:52.8]}
19... Bxg2 {[%clk 0:01:34.2]} 20. Kxg2 {[%clk 0:01:52.4]} 20... Qf5 {[%clk
0:01:29.5]} 21. Rxe7 {[%clk 0:01:45.7]} 21... Be5 {[%clk 0:00:50.7]} 22. Bxe5
{[%clk 0:01:42.6]} 22... dxe5 {[%clk 0:00:50.4]} 23. Qe2 {[%clk 0:01:20]} 23...
Rae8 {[%clk 0:00:19.9]} 24. Rxc7 {[%clk 0:01:17]} 24... e4 {[%clk 0:00:14.8]}
25. d6 {[%clk 0:01:07.1]} 25... e3 {[%clk 0:00:12.8]} 26. fxe3 {[%clk
0:01:03.2]} 26... Qe4+ {[%clk 0:00:08.8]} 27. Kg1 {[%clk 0:01:03]} 27... Rf3
{[%clk 0:00:08.5]} 28. d7 {[%clk 0:01:00.1]} 28... Rd8 {[%clk 0:00:06.8]} 29.
Rc8 {[%clk 0:00:58.9]} 29... Rxe3 {[%clk 0:00:03.8]} 30. Rxd8+ {[%clk
0:00:58.5]} 30... Kg7 {[%clk 0:00:04]} 31. Qf2 {[%clk 0:00:56.2]} 31... Rf3
{[%clk 0:00:03.5]} 32. Qg2 {[%clk 0:00:50.3]} 32... Qe3+ {[%clk 0:00:03.4]} 33.
Kh1 {[%clk 0:00:50.2]} 33... Rf2 {[%clk 0:00:03.4]} 34. Re8 {[%clk 0:00:48.2]}
1-0

[Event "*** SCC Grand Prix: Titled Tuesday Blitz"]
[Site "Chess.com"]
[Date "2020.08.04"]
[Round "9"]
[White "praveenb2002"]
[Black "SamuelGhimpu2003"]
[Result "1-0"]
[WhiteElo "2778"]
[BlackElo "2558"]
[TimeControl "180+1"]
[EndTime "15:26:32 PDT"]
[Termination "praveenb2002 won on time"]

1. d4 {[%clk 0:03:00.9]} 1... Nf6 {[%clk 0:02:59.1]} 2. c4 {[%clk 0:03:00.9]}
2... e6 {[%clk 0:02:58.7]} 3. Nc3 {[%clk 0:02:59.4]} 3... Bb4 {[%clk 0:02:58.6]}
4. Qc2 {[%clk 0:02:58.7]} 4... O-O {[%clk 0:02:58.3]} 5. a3 {[%clk 0:02:56.8]}
5... Bxc3+ {[%clk 0:02:58.1]} 6. Qxc3 {[%clk 0:02:57.7]} 6... b6 {[%clk
0:02:58.7]} 7. Bg5 {[%clk 0:02:55.7]} 7... Bb7 {[%clk 0:02:58.4]} 8. f3 {[%clk
0:02:55.4]} 8... d5 {[%clk 0:02:49]} 9. e3 {[%clk 0:02:53.8]} 9... c5 {[%clk
0:02:47.5]} 10. dxc5 {[%clk 0:02:47]} 10... Nbd7 {[%clk 0:02:45.2]} 11. cxd5
{[%clk 0:02:41.8]} 11... exd5 {[%clk 0:02:06.5]} 12. cxb6 {[%clk 0:02:31.5]}
12... Qxb6 {[%clk 0:02:07.4]} 13. Qd4 {[%clk 0:02:27.8]} 13... Rfc8 {[%clk
0:01:46.7]} 14. Qxb6 {[%clk 0:02:21.3]} 14... axb6 {[%clk 0:01:47.6]} 15. Bxf6
{[%clk 0:02:08.1]} 15... gxf6 {[%clk 0:01:47.1]} 16. Bd3 {[%clk 0:01:55.9]}
16... Ne5 {[%clk 0:01:32.5]} 17. Bf5 {[%clk 0:01:55.8]} 17... Re8 {[%clk
0:01:28.6]} 18. b3 {[%clk 0:01:22.6]} 18... d4 {[%clk 0:01:13.4]} 19. e4 {[%clk
0:01:21.1]} 19... Nd3+ {[%clk 0:01:03.2]} 20. Ke2 {[%clk 0:01:16.6]} 20... Nc5
{[%clk 0:00:57]} 21. Nh3 {[%clk 0:00:59.1]} 21... Nxb3 {[%clk 0:00:54.4]} 22.
Ra2 {[%clk 0:00:57.1]} 22... Ba6+ {[%clk 0:00:50.3]} 23. Kf2 {[%clk 0:00:56.7]}
23... d3 {[%clk 0:00:49.1]} 24. Nf4 {[%clk 0:00:54.6]} 24... d2 {[%clk
0:00:47.5]} 25. Rd1 {[%clk 0:00:52.4]} 25... Red8 {[%clk 0:00:41.7]} 26. Nd5
{[%clk 0:00:51.3]} 26... Kg7 {[%clk 0:00:37.3]} 27. Rb2 {[%clk 0:00:40.3]} 27...
Nd4 {[%clk 0:00:03.5]} 28. Bh3 {[%clk 0:00:37.8]} 28... Bc4 {[%clk 0:00:01.6]}
29. Nxb6 {[%clk 0:00:36.2]} 1-0

[Event "*** SCC Grand Prix: Titled Tuesday Blitz"]
[Site "Chess.com"]
[Date "2020.08.04"]
[Round "9"]
[White "IMHansNiemann"]
[Black "ArjunErigaisi2003"]
[Result "0-1"]
[WhiteElo "2916"]
[BlackElo "3058"]
[TimeControl "180+1"]
[EndTime "15:26:51 PDT"]
[Termination "ArjunErigaisi2003 won by resignation"]

1. d4 {[%clk 0:03:00.9]} 1... d5 {[%clk 0:02:58.7]} 2. c4 {[%clk 0:02:59.6]}
2... e6 {[%clk 0:02:58.8]} 3. Nf3 {[%clk 0:03:00]} 3... Nf6 {[%clk 0:02:58.4]}
4. g3 {[%clk 0:03:00]} 4... Bb4+ {[%clk 0:02:58.3]} 5. Bd2 {[%clk 0:02:59.6]}
5... Be7 {[%clk 0:02:58.5]} 6. Bg2 {[%clk 0:02:59.1]} 6... O-O {[%clk
0:02:59.1]} 7. O-O {[%clk 0:02:54.9]} 7... c6 {[%clk 0:02:59.4]} 8. Qc2 {[%clk
0:02:49.6]} 8... b6 {[%clk 0:02:59.1]} 9. Bf4 {[%clk 0:02:49.3]} 9... Bb7 {[%clk
0:02:54.6]} 10. Nbd2 {[%clk 0:02:44.6]} 10... Nh5 {[%clk 0:02:47]} 11. Be3
{[%clk 0:02:43.7]} 11... Nd7 {[%clk 0:02:44.4]} 12. Nb3 {[%clk 0:02:35.2]} 12...
a5 {[%clk 0:02:35.6]} 13. a4 {[%clk 0:02:27.8]} 13... f5 {[%clk 0:02:34.1]} 14.
Rfc1 {[%clk 0:02:11.5]} 14... Ba6 {[%clk 0:02:28.7]} 15. cxd5 {[%clk 0:02:04.8]}
15... cxd5 {[%clk 0:02:29.6]} 16. Qc6 {[%clk 0:02:03.3]} 16... Rf6 {[%clk
0:02:29]} 17. Ne5 {[%clk 0:01:03.6]} 17... Nf8 {[%clk 0:02:12.8]} 18. Bg5 {[%clk
0:00:51.7]} 18... Rc8 {[%clk 0:02:05.5]} 19. Bf3 {[%clk 0:00:21.8]} 19... Rxc6
{[%clk 0:01:42.6]} 20. Nxc6 {[%clk 0:00:21.7]} 20... Qe8 {[%clk 0:01:43.1]} 21.
Bxh5 {[%clk 0:00:20.4]} 21... Qxh5 {[%clk 0:01:37.9]} 22. Nxe7+ {[%clk
0:00:20.2]} 22... Kf7 {[%clk 0:01:24.8]} 23. Bxf6 {[%clk 0:00:20]} 23... Kxf6
{[%clk 0:01:25.7]} 24. Nc6 {[%clk 0:00:19.1]} 24... Bxe2 {[%clk 0:01:15.8]} 25.
Re1 {[%clk 0:00:18.1]} 25... Ng6 {[%clk 0:01:10.1]} 26. Ne5 {[%clk 0:00:14.8]}
26... f4 {[%clk 0:01:00.4]} 27. Nd2 {[%clk 0:00:11.2]} 27... f3 {[%clk
0:00:49.1]} 28. Nxg6 {[%clk 0:00:08]} 28... hxg6 {[%clk 0:00:47.6]} 29. Ra3
{[%clk 0:00:08.5]} 29... g5 {[%clk 0:00:44.2]} 30. Re3 {[%clk 0:00:07.5]} 30...
g4 {[%clk 0:00:42.9]} 31. h4 {[%clk 0:00:07.4]} 31... Qe8 {[%clk 0:00:37.2]} 32.
Nb1 {[%clk 0:00:05.9]} 32... Qxa4 {[%clk 0:00:34.8]} 33. Nc3 {[%clk 0:00:06.4]}
33... Qxd4 {[%clk 0:00:35.3]} 34. Nxe2 {[%clk 0:00:07]} 34... fxe2 {[%clk
0:00:36.2]} 35. R1xe2 {[%clk 0:00:07.6]} 35... e5 {[%clk 0:00:33.5]} 36. Rc3
{[%clk 0:00:08.2]} 36... Qd1+ {[%clk 0:00:32.1]} 0-1

[Event "*** SCC Grand Prix: Titled Tuesday Blitz"]
[Site "Chess.com"]
[Date "2020.08.04"]
[Round "9"]
[White "AndrewDGreen"]
[Black "DryCounty"]
[Result "1-0"]
[WhiteElo "2407"]
[BlackElo "2567"]
[TimeControl "180+1"]
[EndTime "15:26:52 PDT"]
[Termination "AndrewDGreen won by resignation"]

1. d4 {[%clk 0:03:00.9]} 1... Nf6 {[%clk 0:02:59.6]} 2. Nf3 {[%clk 0:03:00.9]}
2... g6 {[%clk 0:02:58.8]} 3. Nc3 {[%clk 0:03:00.8]} 3... Bg7 {[%clk 0:02:59.2]}
4. e4 {[%clk 0:03:01.1]} 4... O-O {[%clk 0:02:59.6]} 5. e5 {[%clk 0:03:00.5]}
5... Ne8 {[%clk 0:02:59.3]} 6. h4 {[%clk 0:03:00.8]} 6... d6 {[%clk 0:02:58.4]}
7. h5 {[%clk 0:03:01.2]} 7... Bg4 {[%clk 0:02:58.2]} 8. hxg6 {[%clk 0:03:00.9]}
8... fxg6 {[%clk 0:02:57]} 9. Bh6 {[%clk 0:02:54.7]} 9... Bxf3 {[%clk
0:02:53.9]} 10. gxf3 {[%clk 0:02:52.5]} 10... dxe5 {[%clk 0:02:51.7]} 11. Bc4+
{[%clk 0:02:45.1]} 11... Kh8 {[%clk 0:02:51.5]} 12. Qd2 {[%clk 0:02:34]} 12...
Rf4 {[%clk 0:01:52.3]} 13. Bxf4 {[%clk 0:02:26.8]} 13... exf4 {[%clk 0:01:52.4]}
14. O-O-O {[%clk 0:02:14.3]} 14... Nf6 {[%clk 0:01:42.8]} 15. Qxf4 {[%clk
0:02:09.9]} 15... Qd6 {[%clk 0:01:38.4]} 16. Qh4 {[%clk 0:02:00.5]} 16... Nbd7
{[%clk 0:01:31.7]} 17. Ne4 {[%clk 0:01:59.7]} 17... Qc6 {[%clk 0:01:29.9]} 18.
Bb3 {[%clk 0:01:56]} 18... Rf8 {[%clk 0:01:16.4]} 19. Ng5 {[%clk 0:01:52.8]}
19... h6 {[%clk 0:01:12.9]} 20. Ne6 {[%clk 0:01:48.7]} 20... Nh5 {[%clk
0:01:07.2]} 21. Nxf8 {[%clk 0:01:43.9]} 21... Bxf8 {[%clk 0:01:06.1]} 22. Qg4
{[%clk 0:01:26.5]} 22... Bg7 {[%clk 0:00:47]} 23. Kb1 {[%clk 0:01:18.5]} 23...
Nf8 {[%clk 0:00:44.6]} 24. Rdg1 {[%clk 0:01:12.2]} 24... Qf6 {[%clk 0:00:41.7]}
25. c3 {[%clk 0:01:08.3]} 25... Nf4 {[%clk 0:00:40]} 26. Bc2 {[%clk 0:01:05.6]}
26... c5 {[%clk 0:00:31.2]} 27. dxc5 {[%clk 0:00:55.9]} 27... Ne2 {[%clk
0:00:31.2]} 28. Qb4 {[%clk 0:00:37.5]} 28... Nxg1 {[%clk 0:00:30.3]} 29. Rxg1
{[%clk 0:00:38.4]} 29... Qxf3 {[%clk 0:00:28.9]} 30. c6 {[%clk 0:00:31.4]} 30...
bxc6 {[%clk 0:00:26.5]} 31. Qxe7 {[%clk 0:00:30.4]} 31... Qxf2 {[%clk
0:00:24.7]} 32. Rd1 {[%clk 0:00:29.6]} 32... h5 {[%clk 0:00:21]} 33. a3 {[%clk
0:00:29.2]} 33... h4 {[%clk 0:00:20.6]} 34. Rh1 {[%clk 0:00:26.4]} 34... Qf6
{[%clk 0:00:08.9]} 35. Rxh4+ {[%clk 0:00:24.9]} 35... Kg8 {[%clk 0:00:08.9]} 36.
Bb3+ {[%clk 0:00:24.2]} 1-0

[Event "*** SCC Grand Prix: Titled Tuesday Blitz"]
[Site "Chess.com"]
[Date "2020.08.04"]
[Round "9"]
[White "AJSC02"]
[Black "Kavyev_Ruslan"]
[Result "1-0"]
[WhiteElo "2272"]
[BlackElo "2381"]
[TimeControl "180+1"]
[EndTime "15:26:52 PDT"]
[Termination "AJSC02 won by resignation"]

1. e4 {[%clk 0:03:00.9]} 1... c5 {[%clk 0:02:59.8]} 2. Nf3 {[%clk 0:02:59.5]}
2... d6 {[%clk 0:02:52.8]} 3. d4 {[%clk 0:02:59.2]} 3... cxd4 {[%clk 0:02:53.7]}
4. Nxd4 {[%clk 0:02:59.4]} 4... Nf6 {[%clk 0:02:54.6]} 5. f3 {[%clk 0:02:59.2]}
5... a6 {[%clk 0:02:55.5]} 6. c4 {[%clk 0:02:59.2]} 6... e5 {[%clk 0:02:55.6]}
7. Nc2 {[%clk 0:02:58.4]} 7... Be6 {[%clk 0:02:56.3]} 8. Nc3 {[%clk 0:02:58.3]}
8... Nbd7 {[%clk 0:02:57]} 9. Be3 {[%clk 0:02:56.9]} 9... Rc8 {[%clk 0:02:57.5]}
10. Nd5 {[%clk 0:02:56.2]} 10... Bxd5 {[%clk 0:02:19.9]} 11. cxd5 {[%clk
0:02:57.1]} 11... Be7 {[%clk 0:02:20.4]} 12. Be2 {[%clk 0:02:56.1]} 12... Nh5
{[%clk 0:02:20.5]} 13. Qd2 {[%clk 0:02:53]} 13... h6 {[%clk 0:02:18.4]} 14. O-O
{[%clk 0:02:46.6]} 14... Bg5 {[%clk 0:02:18]} 15. Rfc1 {[%clk 0:02:34.6]} 15...
O-O {[%clk 0:02:15.1]} 16. a4 {[%clk 0:02:29.5]} 16... Nc5 {[%clk 0:02:08.9]}
17. Bxg5 {[%clk 0:02:22.3]} 17... Qxg5 {[%clk 0:02:04.3]} 18. Qxg5 {[%clk
0:02:20.8]} 18... hxg5 {[%clk 0:02:05.2]} 19. Ra3 {[%clk 0:02:08.4]} 19... Nf4
{[%clk 0:02:04.7]} 20. Kf2 {[%clk 0:02:03]} 20... f5 {[%clk 0:01:57.6]} 21. b4
{[%clk 0:02:02.4]} 21... Nd7 {[%clk 0:01:50.4]} 22. exf5 {[%clk 0:01:31.6]}
22... Rxf5 {[%clk 0:01:49.5]} 23. Ne3 {[%clk 0:01:22.8]} 23... Rff8 {[%clk
0:01:47.3]} 24. Rac3 {[%clk 0:01:21]} 24... Nb6 {[%clk 0:01:43.5]} 25. Rxc8
{[%clk 0:01:17.2]} 25... Rxc8 {[%clk 0:01:44.4]} 26. Rxc8+ {[%clk 0:01:17.4]}
26... Nxc8 {[%clk 0:01:45.3]} 27. a5 {[%clk 0:01:15.4]} 27... Ne7 {[%clk
0:01:41.2]} 28. Bc4 {[%clk 0:01:15.1]} 28... Kf7 {[%clk 0:01:35.1]} 29. g3
{[%clk 0:01:15.2]} 29... Nfg6 {[%clk 0:01:34.5]} 30. Ke2 {[%clk 0:01:15.2]}
30... Nf8 {[%clk 0:01:32.2]} 31. Kd3 {[%clk 0:01:15.1]} 31... Nd7 {[%clk
0:01:32.7]} 32. Nd1 {[%clk 0:01:08]} 32... Nf6 {[%clk 0:01:30.4]} 33. Nc3 {[%clk
0:01:06.4]} 33... g4 {[%clk 0:01:30.8]} 34. fxg4 {[%clk 0:01:04.2]} 34... Nxg4
{[%clk 0:01:31.7]} 35. h4 {[%clk 0:00:59.8]} 35... Nf5 {[%clk 0:01:30.6]} 36.
Ne4 {[%clk 0:00:57.1]} 36... Nf6 {[%clk 0:01:29]} 37. g4 {[%clk 0:00:37.6]}
37... Nxe4 {[%clk 0:01:26.5]} 38. gxf5 {[%clk 0:00:36.4]} 38... Ng3 {[%clk
0:01:26.3]} 39. Bxa6 {[%clk 0:00:29.1]} 39... bxa6 {[%clk 0:01:15]} 40. b5
{[%clk 0:00:29.1]} 40... e4+ {[%clk 0:01:15.6]} 41. Kd2 {[%clk 0:00:24.1]} 41...
e3+ {[%clk 0:01:06.9]} 42. Ke1 {[%clk 0:00:21.9]} 42... Ne4 {[%clk 0:00:44.7]}
43. bxa6 {[%clk 0:00:17.6]} 1-0

[Event "*** SCC Grand Prix: Titled Tuesday Blitz"]
[Site "Chess.com"]
[Date "2020.08.04"]
[Round "9"]
[White "SiddharthGMJagadeesh"]
[Black "goldenpuppy"]
[Result "1-0"]
[WhiteElo "2574"]
[BlackElo "2425"]
[TimeControl "180+1"]
[EndTime "15:26:55 PDT"]
[Termination "SiddharthGMJagadeesh won by resignation"]

1. d4 {[%clk 0:03:00.9]} 1... Nf6 {[%clk 0:02:59.4]} 2. Nf3 {[%clk 0:02:57.3]}
2... e6 {[%clk 0:02:59.6]} 3. c4 {[%clk 0:02:53.3]} 3... c5 {[%clk 0:02:59.8]}
4. d5 {[%clk 0:02:52.7]} 4... exd5 {[%clk 0:03:00.7]} 5. cxd5 {[%clk 0:02:52.5]}
5... d6 {[%clk 0:03:01.2]} 6. Nc3 {[%clk 0:02:51.8]} 6... g6 {[%clk 0:03:00.6]}
7. h3 {[%clk 0:02:51.5]} 7... a6 {[%clk 0:02:57.6]} 8. a4 {[%clk 0:02:50.7]}
8... Bg7 {[%clk 0:02:57.9]} 9. Bf4 {[%clk 0:02:50.5]} 9... O-O {[%clk
0:02:57.9]} 10. e3 {[%clk 0:02:50.8]} 10... Qe7 {[%clk 0:02:57.7]} 11. Be2
{[%clk 0:02:49.5]} 11... Nbd7 {[%clk 0:02:57.3]} 12. O-O {[%clk 0:02:49]} 12...
Nh5 {[%clk 0:02:56.9]} 13. Bh2 {[%clk 0:02:48.1]} 13... f5 {[%clk 0:02:57.5]}
14. Nd2 {[%clk 0:02:47.3]} 14... Nhf6 {[%clk 0:02:57.2]} 15. Nc4 {[%clk
0:02:46.1]} 15... Ne8 {[%clk 0:02:56.7]} 16. a5 {[%clk 0:02:43.4]} 16... Ne5
{[%clk 0:02:55.3]} 17. Nxe5 {[%clk 0:02:33.3]} 17... Bxe5 {[%clk 0:02:54.4]} 18.
Bxe5 {[%clk 0:02:30.8]} 18... Qxe5 {[%clk 0:02:54.2]} 19. Na4 {[%clk 0:02:23.9]}
19... Bd7 {[%clk 0:02:52.7]} 20. Nb6 {[%clk 0:02:23.2]} 20... Rd8 {[%clk
0:02:52.4]} 21. Qb3 {[%clk 0:02:16.6]} 21... Nf6 {[%clk 0:02:52.1]} 22. Rad1
{[%clk 0:02:03.8]} 22... Kg7 {[%clk 0:02:51.4]} 23. Nc4 {[%clk 0:02:02.5]} 23...
Qe7 {[%clk 0:02:48.1]} 24. Qxb7 {[%clk 0:01:57.6]} 24... f4 {[%clk 0:02:44.1]}
25. Qxa6 {[%clk 0:01:47.4]} 25... Bc8 {[%clk 0:02:40.4]} 26. Qb6 {[%clk
0:01:40.8]} 26... Ng8 {[%clk 0:02:24.8]} 27. Rfe1 {[%clk 0:01:24]} 27... fxe3
{[%clk 0:01:59.4]} 28. Nxe3 {[%clk 0:01:24.9]} 28... Qf6 {[%clk 0:01:56.5]} 29.
Rf1 {[%clk 0:01:23.9]} 29... Qg5 {[%clk 0:01:52.6]} 30. Bg4 {[%clk 0:01:17.2]}
30... Bxg4 {[%clk 0:01:44.1]} 31. hxg4 {[%clk 0:01:18.1]} 31... Nf6 {[%clk
0:01:42]} 32. a6 {[%clk 0:01:04.7]} 32... Nxg4 {[%clk 0:01:40.8]} 33. Nxg4
{[%clk 0:01:05.6]} 33... Qxg4 {[%clk 0:01:40.6]} 34. a7 {[%clk 0:00:58.1]} 34...
Qd7 {[%clk 0:01:39.6]} 35. Ra1 {[%clk 0:00:56.6]} 35... Ra8 {[%clk 0:01:39.3]}
36. Rfe1 {[%clk 0:00:51.6]} 36... Qf5 {[%clk 0:01:29.1]} 37. Re2 {[%clk
0:00:49]} 37... Qxd5 {[%clk 0:01:24.5]} 38. Re7+ {[%clk 0:00:45.1]} 38... Rf7
{[%clk 0:01:11.9]} 39. Rxf7+ {[%clk 0:00:43.3]} 39... Qxf7 {[%clk 0:01:10.1]}
40. Qxd6 {[%clk 0:00:39]} 40... Rxa7 {[%clk 0:01:07.9]} 41. Qe5+ {[%clk
0:00:39.2]} 41... Kh6 {[%clk 0:01:07]} 42. Qe3+ {[%clk 0:00:33.2]} 42... Kg7
{[%clk 0:01:05.7]} 43. Qc3+ {[%clk 0:00:33.2]} 43... Kh6 {[%clk 0:01:05.7]} 44.
Rd1 {[%clk 0:00:29.1]} 44... Re7 {[%clk 0:00:58.7]} 45. Rd3 {[%clk 0:00:23.8]}
45... g5 {[%clk 0:00:51]} 46. Rd6+ {[%clk 0:00:21.3]} 46... Re6 {[%clk
0:00:37.4]} 47. Qh3+ {[%clk 0:00:21.6]} 47... Qh5 {[%clk 0:00:36.5]} 48. Qxe6+
{[%clk 0:00:22.5]} 48... Kg7 {[%clk 0:00:35.8]} 49. Rd7+ {[%clk 0:00:22.1]} 1-0